Cogmind - Beta 14 @@@ ROGUE MODE // 2024.09.14 @ 20:45:36 Player: Dull Result: Destroyed by Y-45 Defender with Beam Rifle Performance ------------- Evolutions (0) 0 Regions Visited (3) 600 Robots Destroyed (22) 110 Value Destroyed (467) 467 Prototype IDs (2) 40 Alien Tech Used (0) 0 Bonus (0) 0 TOTAL SCORE: 1217 Bonus ------- None Cogmind --------- Core Integrity 0/250 Matter 254/300 Energy 168/250 System Corruption 0% Temperature Warm (130) Movement Treading (160) Location -9/Recycling Parts ------- > --- POWER (1) -------- Ion Engine > --- PROPULSION (2) --- Light Treads Improved Treads > --- UTILITY (2) ------ Large Storage Unit Shield Generator > --- WEAPON (2) ------- Subdweller Beam Cannon Subdweller Machine Gun > --- INVENTORY (15) --- Ion Engine Ion Engine Hover Unit Hover Unit Hover Unit Hover Unit Hover Unit Small Storage Unit Makeshift System Shield Subdweller Laser Rocket Launcher Rocket Launcher Rocket Launcher Rocket Launcher Mining Laser Peak State ------------ > --- POWER ------------ Ion Engine > --- PROPULSION ------- Light Treads Improved Treads > --- UTILITY ---------- Large Storage Unit Shield Generator > --- WEAPON ----------- Subdweller Beam Cannon Subdweller Machine Gun > --- INVENTORY -------- Ion Engine Ion Engine Hover Unit Hover Unit Hover Unit Hover Unit Hover Unit Small Storage Unit Makeshift System Shield Subdweller Laser Rocket Launcher Rocket Launcher Rocket Launcher Rocket Launcher Mining Laser [Rating: 13] Favorites ----------- Power Ion Engine Engine Ion Engine Propulsion Light Treads Treads Light Treads Leg Aluminum Leg Wheel Compact Wheel Utility Large Storage Unit Device Improved Heat Sink Storage Large Storage Unit Protection Light Armor Plating Weapon Small Laser Energy Gun Small Laser Energy Cannon Subdweller Beam Cannon Ballistic Gun Subdweller Machine Gun Ballistic Cannon Light Cannon Launcher Rocket Launcher Build | -11 -10 -10 -9 ------- Run | Yrd Mat Sub Rec Slots Evolved . | . . . . Power . | . . . . Propulsion . | . . . . Utility . | . . . . Weapon . | . . . . Parts Attached 30 | 4 16 6 4 Power 2 | . 2 . . Engine 2 | . 2 . . Core . | . . . . Reactor . | . . . . Propulsion 11 | 3 3 1 4 Treads 10 | 2 3 1 4 Leg . | . . . . Wheel 1 | 1 . . . Hover . | . . . . Flight . | . . . . Utility 6 | 1 4 1 . Device 4 | 1 2 1 . Storage 1 | . 1 . . Processor . | . . . . Hackware . | . . . . Protection 1 | . 1 . . Artifact . | . . . . Weapon 11 | . 7 4 . Energy Gun . | . . . . Energy Cannon 1 | . . 1 . Ballistic Gun 5 | . 4 1 . Ballistic Cannon 3 | . 2 1 . Launcher 2 | . 1 1 . Special Weapon . | . . . . Impact Weapon . | . . . . Slashing Weapon . | . . . . Piercing Weapon . | . . . . Special Melee Weapon . | . . . . Unidentified Prototypes . | . . . . Parts Lost 3 | . . 3 . Power . | . . . . Propulsion 1 | . . 1 . Utility 1 | . . 1 . Weapon 1 | . . 1 . Highest Loss Streak 3 | . . 3 . To Critical Strikes . | . . . . Average Slot Usage (%) 99 | . 99 99 100 Engine 14 | . 14 14 14 Treads 27 | . 27 28 28 Device 10 | . 10 6 14 Storage 14 | . 14 14 14 Protection 3 | . 3 7 . Energy Gun 11 | . 17 7 . Energy Cannon 3 | . . 6 14 Ballistic Gun 5 | . 2 6 14 Ballistic Cannon 6 | . 8 6 . Peak Build Rating 13 | 9 11 12 13 Average Rating 10 | 6 10 10 12 On Entrance 9 | 6 9 9 12 Naked Turns . | . . . . Heaviest Build 39 | 11 32 39 39 Greatest Support 43 | 40 40 40 43 Greatest Overweight (x) 1 | . 1 . . Average Overweight (x) . | . . . . Largest Inventory Capacity 15 | 8 15 15 15 Average Capacity 14 | 8 14 15 15 Most Carried 15 | 7 15 15 15 Average Carried 13 | 6 13 14 15 Final Capacity 15 | 8 15 15 15 Final Carried 15 | 6 15 15 15 Class Distribution -------------------- 100% | Mutant Dominant Class ---------------- Mutant | -10/Materials Mutant | -10/Subcaves Mutant | -9/Recycling Resources | -11 -10 -10 -9 ----------- Run | Yrd Mat Sub Rec Matter Collected 625 | 240 192 193 . Remotely . | . . . . Salvage Created 447 | 91 263 93 . Parts 37 | 4 23 10 . Haulers Intercepted . | . . . . Recyclers Shooed . | . . . . Parts Field Recycled . | . . . . Retrieved Matter . | . . . . Parts Self-Destructed 5 | . . 5 . Prevented . | . . . . Kills | -11 -10 -10 -9 ------- Run | Yrd Mat Sub Rec Combat Hostiles Destroyed 14 | . 7 7 . Guns 7 | . 6 1 . Cannons 3 | . 1 2 . AOE 4 | . . 4 . Classes Destroyed 8 | 2 4 2 . Tunneler 2 | 2 . . . Recycler 1 | 1 . . . Operator 1 | . 1 . . Turret 2 | . . 2 . Watcher 2 | . 2 . . Swarmer 7 | . 3 4 . Grunt 4 | . 4 . . Subdweller 3 | . . 3 . Best Kill Streak 6 | 1 3 6 . Combat Bots Only 4 | . 3 4 . Max Kills in Single Turn 3 | 1 1 3 . Gunslinging . | . . . . Exploded 3 | . . 3 . Melee . | . . . . Uniques/NPCs Destroyed . | . . . . Combat | -11 -10 -10 -9 -------- Run | Yrd Mat Sub Rec Hostile Shots Fired 118 | . 25 86 7 Missed 43 | . 5 36 2 Damage Taken 1020 | . 228 736 56 Core 255 | . 48 196 11 Absorbed by Shields 52 | . . 32 20 Core Remaining (%) 100 | 100 . . . Volleys Fired 70 | 11 31 25 3 Largest 2 | 2 2 2 2 Hottest 110 | 80 80 75 110 Shots Fired 124 | 22 62 34 6 Gun 89 | 22 51 13 3 Cannon 28 | . 11 14 3 Launcher 7 | . . 7 . Special . | . . . . Kinetic 36 | . 19 14 3 Thermal 81 | 22 43 13 3 Explosive 7 | . . 7 . Electromagnetic . | . . . . Robot Hit Streak 31 | 5 9 27 31 Robot Miss Streak 6 | 3 6 2 1 Penetration Max . | . . . . Secondary Targets . | . . . . Shots Hit Robots 78 | 11 31 31 5 Core Hits 38 | 4 17 17 . Critical Kills . | . . . . Critical Parts Destroyed . | . . . . Critical Strikes . | . . . . Melee Attacks . | . . . . Impact . | . . . . Slashing . | . . . . Piercing . | . . . . Sneak Attacks . | . . . . Combat Hostiles . | . . . . Follow-up Attacks . | . . . . Damage Inflicted 1482 | 135 432 795 120 Guns 680 | 135 332 145 68 Cannons 378 | . 89 237 52 Explosions 413 | . . 413 . Melee . | . . . . Ramming 11 | . 11 . . Kinetic 438 | . 133 237 68 Thermal 620 | 135 288 145 52 Explosive 413 | . . 413 . Electromagnetic . | . . . . Impact . | . . . . Slashing . | . . . . Piercing . | . . . . Highest Corruption . | . . . . Average Corruption . | . . . . Corruption Purged . | . . . . Corruption Blocked . | . . . . Overload Shots . | . . . . Overflow Damage 30 | . . 30 . Projectiles . | . . . . Explosions 30 | . . 30 . Melee . | . . . . Knockbacks 4 | . . 4 . Impact . | . . . . Kinetic 4 | . . 4 . Secondary . | . . . . Self-Inflicted Damage 67 | . . 67 . Shots 3 | . . 3 . Rammed 4 | . 4 . . Targets Rammed 4 | . 4 . . Kicked . | . . . . Crushed . | . . . . Highest Temperature 144 | 108 144 9 124 Average Temperature 47 | 46 46 5 71 Received Heat Transfer 326 | . 102 206 18 Siege Activations . | . . . . Robots Corrupted . | . . . . Combat Hostiles . | . . . . Parts Fried . | . . . . Impact Corruptions . | . . . . Robots Melted . | . . . . Combat Hostiles . | . . . . Parts Melted 1 | . . 1 . Heat Transferred 1324 | 300 625 325 74 Parts Sabotaged . | . . . . Parts Stolen . | . . . . Parts Stripped . | . . . . Power Chain Reactions . | . . . . Alert | -11 -10 -10 -9 ------- Run | Yrd Mat Sub Rec Peak Influence 221 | 15 221 . 15 Initial 9 | . 9 . . Average 61 | 8 81 . 3 Maximum Alert Level 1 | . 1 . . Low Security (%) 91 | 100 88 . 100 Level 1 8 | . 11 . . Level 2 . | . . . . Level 3 . | . . . . Level 4 . | . . . . Level 5 . | . . . . High Security . | . . . . Max Security . | . . . . Squads Dispatched 3 | . 3 . . Investigation 2 | . 2 . . Extermination . | . . . . Reinforcement 1 | . 1 . . Assault . | . . . . Garrison . | . . . . Intercept . | . . . . Searches Triggered . | . . . . Construction Impeded . | . . . . Haulers Reinforced . | . . . . Active Scanning Responses . | . . . . Cargo Convoy Interrupts . | . . . . Stealth | -11 -10 -10 -9 --------- Run | Yrd Mat Sub Rec Distress Signals 1 | . 1 . . Communications Jammed . | . . . . Distress Signals . | . . . . Times Spotted 28 | . 17 10 1 Peak Tracking Total 6 | . 3 6 1 Tactical Retreats 3 | . 2 1 . Traps | -11 -10 -10 -9 ------- Run | Yrd Mat Sub Rec Traps Triggered 4 | . 4 . . Indirectly . | . . . . Trap Hack Attempts . | . . . . Triggered . | . . . . Disarmed . | . . . . Reprogrammed . | . . . . Reused . | . . . . Traps Extracted . | . . . . Installed . | . . . . Triggered . | . . . . Machines | -11 -10 -10 -9 ---------- Run | Yrd Mat Sub Rec Machines Disabled 4 | . . 4 . Max in Single Turn 2 | . . 2 . Machines Repaired . | . . . . Machines Dismantled . | . . . . Machines Sabotaged . | . . . . Overloaded Fab Kills . | . . . . Hacking | -11 -10 -10 -9 --------- Run | Yrd Mat Sub Rec Machines Accessed 11 | . 9 . 2 Terminals 8 | . 7 . 1 Fabricators . | . . . . Repair Stations . | . . . . Recycling Units 3 | . 2 . 1 Scanalyzers . | . . . . Garrison Access . | . . . . Total Hacks 31 | . 26 . 5 Successful 13 | . 10 . 3 Failed 18 | . 16 . 2 Catastrophic 1 | . . . 1 Database Lockouts . | . . . . Manual 27 | . 22 . 5 Terminals 25 | . 22 . 3 Fabricators . | . . . . Repair Stations . | . . . . Recycling Units 6 | . 4 . 2 Scanalyzers . | . . . . Garrison Access . | . . . . Terminal Hacks 7 | . 6 . 1 Part Schematic 2 | . 2 . . Robot Analysis 3 | . 3 . . Prototype ID Bank 1 | . 1 . . Branch Access Points 1 | . . . 1 Fabricator Hacks . | . . . . Repair Station Hacks . | . . . . Recycling Unit Hacks . | . . . . Scanalyzer . | . . . . Garrison Access Hacks . | . . . . Unauthorized Hacks 6 | . 4 . 2 Terminals . | . . . . Fabricators . | . . . . Repair Stations . | . . . . Recycling Units 6 | . 4 . 2 Reject 3 | . 2 . 1 Mask 3 | . 2 . 1 Scanalyzers . | . . . . Garrison Access . | . . . . Data Cores Recovered . | . . . . Used . | . . . . Hacking Detections 9 | . 8 . 1 Full Trace Events 3 | . 3 . . Feedback Events . | . . . . Feedback Blocked . | . . . . Robot Schematics Acquired . | . . . . Robots Built . | . . . . Authchips . | . . . . Time . | . . . . Total Robot Build Rating . | . . . . Part Schematics Acquired 2 | . 2 . . Parts Built . | . . . . Authchips . | . . . . Time . | . . . . Total Part Build Rating . | . . . . Parts Repaired . | . . . . Time . | . . . . Parts Recycled . | . . . . Recycled Matter . | . . . . Retrieved Matter . | . . . . Retrieved Components . | . . . . Parts Scanalyzed . | . . . . Part Schematics Acquired . | . . . . Parts Damaged . | . . . . Bothacking | -11 -10 -10 -9 ------------ Run | Yrd Mat Sub Rec Used RIF Installer . | . . . . Robots Hacked . | . . . . Non-combat . | . . . . Combat . | . . . . Robot Hacks Applied . | . . . . Relay Couplers Released . | . . . . Fabnet Peak Effective % . | . . . . Robots Rewired . | . . . . Allies Hacked . | . . . . Hacks Repelled . | . . . . Allies | -11 -10 -10 -9 -------- Run | Yrd Mat Sub Rec Total Allies . | . . . . Largest Group . | . . . . Highest-Rated Group . | . . . . Highest-Rated Ally . | . . . . Total Orders . | . . . . Ally Attacks . | . . . . Total Damage . | . . . . Kills . | . . . . Allies Corrupted . | . . . . Allies Melted . | . . . . Intel | -11 -10 -10 -9 ------- Run | Yrd Mat Sub Rec Robot Analysis Total 3 | . 3 . . Derelict Logs Recovered 1 | . . 1 . Drone Launches . | . . . . Drone Recoveries . | . . . . Exploration | -11 -10 -10 -9 ------------- Run | Yrd Mat Sub Rec Turns Passed 2446 | 92 1388 583 383 Spaces Moved 1346 | 32 765 322 227 Core . | . . . . Treads 1346 | 32 765 322 227 Legs . | . . . . Wheels . | . . . . Hover . | . . . . Flight . | . . . . Fastest Speed 160 | 160 160 160 160 Average Speed 160 | 160 160 160 160 Slowest Speed 240 | 160 240 160 160 Overloaded Moves . | . . . . Propulsion Burnouts . | . . . . Robots Hopped . | . . . . Cave-ins Triggered . | . . . . Exploration Rate (%) 43 | 3 100 19 53 Regions Visited 3 Branch Regions 2 Pre-discovered Areas . | . . . . Known Exits Taken . | . . . . Unknown Exits Taken 3 | 1 1 1 . Scrap Searched 5 | . . 5 . Spaces Dug . | . . . . Terrain Destroyed 36 | . . 35 1 Melee . | . . . . Projectile 1 | . . . 1 AOE 35 | . . 35 . Terrain Rammed . | . . . . Walls Destroyed . | . . . . Machines Disabled . | . . . . Actions | -11 -10 -10 -9 --------- Run | Yrd Mat Sub Rec Total 1513 | 50 865 354 244 Wait 30 | . 24 . 6 Move 1343 | 31 764 321 227 Hop . | . . . . Pick Up 19 | 2 15 2 . Fast Attach 6 | 1 4 1 . Attach 2 | . . 2 . Detach . | . . . . Swap 22 | 3 12 3 4 Drop 17 | 2 11 . 4 Fire 70 | 11 31 25 3 Melee . | . . . . Ram . | . . . . Kick . | . . . . Crush 4 | . 4 . . Escape Stasis . | . . . . Rewire . | . . . . Trap . | . . . . Miscellaneous . | . . . . Route ------- -11/Scrapyard -10/Materials (discovered 5 exits: [*Mat x3] / [*Min] / [*Sub]) -10/Subcaves -9/Recycling History --------- Turn | Location | Event 18 | -11/Scrapyard | Discovered new exit (range 3) 93 | -11/Scrapyard | Entered Materials 304 | -10/Materials | Build established: Mutant 356 | -10/Materials | Discovered new exit (range 13) 772 | -10/Materials | Discovered new exit (range 14) 943 | -10/Materials | Discovered new exit (range 4) 1222 | -10/Materials | Discovered new exit (range 16) 1468 | -10/Materials | Discovered new exit (range 9) 1481 | -10/Materials | Entered Subcaves 1485 | -10/Subcaves | Learned Materials terminal intel 1573 | -10/Subcaves | Discovered new exit (range 13) 1770 | -10/Subcaves | Disturbed a concealed Subdweller 1774 | -10/Subcaves | Core integrity fell below 50% 1791 | -10/Subcaves | Core integrity fell below 20% 1831 | -10/Subcaves | Lost 3 parts (1n1u1w) 2064 | -10/Subcaves | Entered Recycling 2065 | -9/Recycling | Met a Zionite searching for Scraptown 2447 | -9/Recycling | Destroyed by Y-45 Defender with Beam Rifle Last Messages --------------- 02067_ ZY-LE9(z): "Anyway I've been here searching too long already, time to slink back to the caves before I'm caught. You'd best do the same." 02087_ Dropped Lgt. Treads. 02106_ R-06 Scavenger collects Lgt. Treads. 02184_ Dropped Lgt. Treads. 02193_ R-06 Scavenger collects Lgt. Treads. 02296_ Connecting with Terminal... 02296_ Current location identified: Recycling >>Access(Branch) No branch access points found. 02436_ Connecting with Recycling Unit... >>Trojan(Mask) Trojan loaded successfully. Testing... Masking routine running. >>Trojan(Reject) Trojan loaded successfully. Testing... Ejection routine running. 02437_ Y-45 Defender springs to life. Map ----- +----------------------------------------------------+ | ??# ## [ | | ??# ## ! | | ??# ######### | | ??# #???????# %= | | ??# #???????# = ! | | ??# #######?# ] | | ??# #####+### | | ??# | | ??# | | ??# | | ??# """ """ """ """ | | ??# """"""""" """"""""" | | ??# """"" """"" | | ??# | | ??# | | ??# """ """ """ """ | | ??# """"""""" """"""""" | | ??# """""r """"" | | ??# r ??? | | ??# ??? | | ??# r ??? # | | ??# ??? # | | ### #?????## ? | | #"" #????????? | | #"Y #####+##+#?????????? | | #""@ ##??????????????????? | | ### u#???????????????????? | | ??# #???????????????????? | | ??# #???????????????????? | | ??# #???????????????????? | | ??# Y#???????????????????? | | ??# ???????????????????? | | ??# ##??????????????????? | | ??# #???????????????????? | | ??? ;???????????????????? | | ??? #???????????????????? | | ??? #???????????????????? | | ??? #???????????????????? | | ??? #???????????????????? | | ??? +???????????????????? | | ??? ?????????????????????? | | ???????????????????????????? | | ???????????????????????????? | | ???????????????????????????? | | ???????????????????????????? | | ???????????????????????????? | | ???????????????????????????? | | ???????????????????????????? | | ???????????????????????????? | | ???????????????????????????? | +----------------------------------------------------+ Best States ------------- Heat Dissipation 39 Energy Generation 10 Energy Capacity 250 Matter Stores 300 Matter Capacity 300 Sight Range 16 Terrain Scan Range 16 Terrain Scan Density 10 ECM Strength 1 Armor Coverage 150 Evasion (%) 40 Recoil Reduction 2 Item Schematics ----------------- Huge Storage Unit | -10/Materials | Hacked Lrg. Storage Unit | -10/Materials | Hacked Robot Schematics ------------------ None Fabricated ------------ Nothing Alien Tech Used ----------------- None Achievements -------------- None Challenges ------------ None Game ------ Seed TrackerArmoredAirjet Manual? 0 Play Time 00:15:28 Cumulative 78.5 hours Start 2024.09.14 @ 20:31:57 End 2024.09.14 @ 20:45:36 Sessions 1 Manual Loads 0 Difficulty Rogue Special Mode None Game No. 105 Rogue 105 Adventurer 0 Explorer 0 Win Type - Total 1 Types 1/0/0/0/0/0/0/0/0 Lore% 17 Gallery% 55 Achievement% 43 Wizard Run 0 Options --------- Layout 0 ASCII 0 Keyboard 0 Movement Mouse Keybinds 1 Fullscreen 1 Font 18/TerminusBold Map View 76x50 Zoom Use 0% Tactical HUD 1 Map Filters NONE Filters NONE Steam 1 RUN: fb2dfa5d-2688-4461-b121-ab22117ad2b6